bitfinex/quotes_ETHUSD_20250721
["timestamp","ask_amount","ask_price","bid_price","bid_amount"]
[1753128778380,2.32169606,3746.1,3745.6,0.001]
[1753128778591,0.4661,3746.0,3745.6,0.001]
[1753128778990,0.4661,3745.9,3745.6,0.001]
[1753128779193,1.85559606,3746.1,3745.6,0.001]
[1753128779999,1.10519606,3746.1,3745.6,0.001]
[1753128780304,2.01514567,3746.0,3745.6,0.001]
[1753128782105,0.4661,3745.9,3745.6,0.001]
[1753128782307,1.54904567,3746.0,3745.6,0.001]
[1753128785473,1.55104567,3746.0,3745.6,0.001]
[1753128786818,0.4661,3745.9,3745.6,0.001]
[1753128787116,0.28059536,3745.8,3745.6,0.001]
[1753128790448,1.55104567,3746.0,3745.6,0.001]
[1753128791148,0.4661,3745.9,3745.6,0.001]
[1753128791912,11.38326063,3745.8,3745.6,0.001]
[1753128792108,0.7517,3745.7,3745.6,0.001]
[1753128792313,5.84904567,3746.0,3745.6,0.001]
[1753128792533,4.3,3746.0,3745.6,0.001]
[1753128793327,0.4661,3745.9,3745.6,0.001]
[1753128794047,0.4661,3745.8,3745.6,0.001]
[1753128794507,0.4661,3745.7,3745.6,0.001]
[1753128794714,3.4661,3745.7,3745.6,0.001]
[1753128795015,4.268,3745.7,3745.6,0.001]
[1753128795447,8.565,3745.7,3745.6,0.001]
[1753128797226,15.75140144,3745.7,3745.6,0.001]
[1753128797432,17.40727858,3745.7,3745.6,0.001]
[1753128799663,17.40727858,3745.7,3745.1,0.001]
[1753128799664,1.324,3745.5,3745.1,0.001]
[1753128799845,7.18640144,3745.2,3745.1,0.001]
[1753128800049,14.48240144,3745.2,3745.1,0.001]
[1753128800360,10.65999139,3745.2,3745.1,0.001]
[1753128800545,14.95599139,3745.2,3745.1,0.001]
[1753128801352,7.76958995,3745.2,3745.1,0.001]
[1753128801719,8.23718995,3745.2,3745.1,0.001]
[1753128803141,9.04928995,3745.2,3745.1,0.001]
[1753128803919,3.1328,3745.1,3744.8,0.001]
[1753128804124,14.72670225,3744.9,3744.8,0.001]
[1753128804550,15.19430225,3744.9,3744.8,0.001]
[1753128805974,15.32952024,3744.9,3744.8,0.001]
[1753128806136,19.62452024,3744.9,3744.8,0.001]
[1753128808777,20.17452024,3744.9,3744.8,0.001]
[1753128809077,21.83039738,3744.9,3744.8,0.001]
[1753128809242,3.6828,3744.8,3744.4,0.001]
[1753128809573,3.55,3744.6,3744.4,0.001]
[1753128809877,7.294,3744.5,3744.4,0.001]
[1753128810048,7.7616,3744.5,3744.4,0.001]
[1753128810379,8.23518995,3744.5,3744.4,0.001]
[1753128812573,9.59278995,3744.5,3744.4,0.001]
[1753128812775,0.6828,3744.4,3744.1,0.021]
[1753128812980,13.92440225,3744.2,3744.1,0.021]
[1753128813185,15.27977225,3744.2,3744.1,0.021]
[1753128813479,8.09737,3744.2,3744.1,0.021]
[1753128813787,3.0,3744.2,3744.1,0.4733]
[1753128814297,0.8082,3744.9,3744.1,0.4733]
[1753128814506,0.8082,3745.5,3744.2,0.7534]
[1753128814651,0.1328,3744.6,3744.3,1.2057]
[1753128814857,0.1328,3744.6,3744.4,0.4523]
[1753128815051,0.1328,3744.6,3744.4,0.84205622]
[1753128815252,0.1328,3744.6,3744.4,3.51271018]
[1753128815489,0.1328,3744.6,3744.5,3.12288352]
[1753128815791,0.1328,3744.6,3744.5,3.87628352]
[1753128816502,0.1328,3744.9,3744.8,3.42371069]
[1753128816801,0.1328,3744.9,3744.8,1.2057]
[1753128819870,0.1328,3744.9,3744.8,5.4957]
[1753128822410,0.1328,3744.9,3744.8,0.7534]
[1753128822584,0.1328,3744.9,3744.8,4.289]
[1753128822994,0.1328,3744.9,3744.4,1.2138]
[1753128823308,3.7973,3745.5,3744.5,4.7413]
[1753128823309,0.1328,3744.6,3744.5,4.7413]
[1753128824409,0.64497002,3745.8,3744.5,4.7413]
[1753128824410,0.002,3745.9,3744.6,0.8126]
[1753128824606,0.002,3745.9,3745.0,3.22022696]
[1753128824781,0.1348,3745.9,3745.8,3.48225668]
[1753128824988,0.002,3745.9,3745.8,7.77025668]
[1753128825314,0.002,3745.9,3745.8,8.22255668]
[1753128825876,0.002,3745.9,3745.8,9.87507134]
[1753128826185,0.002,3745.9,3745.8,10.00787134]
[1753128826781,0.002,3745.9,3745.8,10.00687134]
[1753128830213,0.002,3745.9,3745.8,10.00587134]
[1753128831314,1e-08,3745.9,3745.8,24.22391834]
[1753128831489,1e-08,3745.9,3745.8,20.32091834]
[1753128831678,1e-08,3745.9,3745.8,17.61010934]
[1753128832280,1e-08,3745.9,3745.8,16.72360234]
[1753128832489,1e-08,3745.9,3745.8,12.43860234]
[1753128832691,1e-08,3745.9,3745.8,15.87310034]
[1753128832878,0.002,3746.7,3746.1,7.05174288]
[1753128833076,0.002,3746.7,3746.1,19.5225672]
[1753128833303,0.002,3746.7,3746.1,20.1260672]
[1753128834205,0.002,3746.7,3746.1,15.8420672]
[1753128834508,0.002,3746.7,3746.1,20.1260672]
[1753128835210,1e-08,3746.8,3746.7,6.2190154]
[1753128835413,0.1328,3748.6,3747.3,2.66858805]
[1753128835711,1e-08,3747.4,3747.3,11.28437393]
[1753128835873,1e-08,3747.4,3747.3,11.86118805]
[1753128836682,1e-08,3747.4,3747.3,7.57818805]
[1753128836882,1e-08,3747.4,3747.3,12.8848741]
[1753128838418,1e-08,3747.4,3747.3,8.0528741]
[1753128838719,1e-08,3747.4,3747.3,12.8838741]
[1753128839120,1e-08,3747.4,3747.3,8.6028741]
[1753128839290,1e-08,3747.4,3747.3,12.8838741]
[1753128839622,1e-08,3747.4,3747.3,8.6028741]
[1753128839927,1e-08,3747.4,3747.3,12.8838741]
[1753128840297,1e-08,3747.4,3747.3,0.8889]
[1753128840492,1e-08,3747.4,3747.3,5.0361]
[1753128840687,1e-08,3747.4,3747.3,4.28]
[1753128840887,1e-08,3747.4,3747.1,0.1328]
[1753128841197,1e-08,3747.4,3747.1,2.66872902]
[1753128841524,1e-08,3747.4,3747.2,4.30668659]
[1753128841729,1e-08,3747.4,3747.3,3.57518805]
[1753128841887,1e-08,3747.4,3747.3,4.04588805]
[1753128842612,1e-08,3747.4,3747.3,4.59588805]
[1753128843033,1e-08,3747.4,3747.3,4.62257393]
[1753128843189,1e-08,3747.4,3747.3,5.54300977]
[1753128843392,1e-08,3747.4,3747.3,9.82200977]
[1753128843612,1e-08,3747.4,3747.3,9.79532389]
[1753128844089,1e-08,3747.4,3747.3,10.34532389]
[1753128844490,1e-08,3747.4,3747.3,13.34532389]
[1753128844705,1e-08,3747.4,3747.3,12.57152389]
[1753128844914,1e-08,3747.4,3747.3,22.71515443]
[1753128845124,1e-08,3747.4,3747.3,22.37571489]
[1753128845442,1e-08,3747.4,3747.3,22.71515443]
[1753128845648,1e-08,3747.9,3747.8,2.66823202]
[1753128845828,1e-08,3747.9,3747.8,18.2346692]
[1753128846147,1e-08,3747.9,3747.8,18.81148688]
[1753128847143,1e-08,3747.9,3747.8,14.53348688]
[1753128847328,1e-08,3747.9,3747.8,18.81148688]
[1753128849831,1e-08,3747.9,3747.8,14.53348688]
[1753128850056,1e-08,3747.9,3747.8,18.80948688]
[1753128850244,1e-08,3747.9,3747.8,14.53348688]
[1753128850393,1e-08,3747.9,3747.8,18.80848688]
[1753128850590,1e-08,3747.9,3747.8,14.53348688]
[1753128850914,1e-08,3747.9,3747.8,18.80848688]
[1753128852731,1e-08,3747.9,3747.8,18.80748688]
[1753128852899,1e-08,3747.9,3747.8,47.01361888]
[1753128853232,1e-08,3747.9,3747.8,47.67668742]
[1753128853396,1e-08,3747.9,3747.8,45.60416242]
[1753128853602,1e-08,3747.9,3747.8,39.31541942]
[1753128853833,1e-08,3748.9,3748.8,3.21752027]
[1753128854132,1e-08,3748.9,3748.8,11.5754723]
[1753128854339,1e-08,3748.9,3748.8,16.3982723]
[1753128854634,1e-08,3748.9,3748.8,12.4621723]
[1753128854833,1e-08,3748.9,3748.8,18.9482023]
[1753128855150,1e-08,3748.9,3748.8,19.1278353]
[1753128855357,1e-08,3748.9,3748.8,18.9089133]
[1753128856951,1e-08,3748.9,3748.8,12.4621723]
[1753128857158,1e-08,3748.9,3748.8,16.93114029]
[1753128857516,1e-08,3748.9,3748.8,7.87624029]
[1753128857735,1e-08,3748.9,3748.8,4.46896799]
[1753128857982,1e-08,3748.9,3748.4,0.7865]
[1753128858160,0.43200001,3748.9,3748.5,4.272]
[1753128858366,0.43200001,3748.9,3748.6,4.272]
[1753128858670,0.43200001,3748.9,3748.5,0.19913537]
[1753128858893,0.43200001,3748.9,3748.6,4.271]
[1753128859435,0.432,3748.8,3748.7,4.271]
[1753128860850,0.432,3748.8,3747.8,6.401]
[1753128861055,0.8132,3748.7,3747.8,6.401]
[1753128861264,0.8075,3748.5,3747.9,4.27]
[1753128861471,0.432,3748.4,3748.0,4.27]
[1753128861840,0.8075,3748.5,3748.0,4.27]
[1753128862285,0.8075,3748.5,3748.0,4.29668089]
[1753128862457,0.8075,3748.5,3748.1,2.66801846]
[1753128862671,0.8075,3748.5,3748.2,2.69461605]
[1753128862879,0.8075,3748.5,3748.3,4.27]
[1753128863061,1e-08,3748.9,3748.3,4.27]
[1753128863261,1e-08,3748.9,3748.4,0.02667804]
[1753128863483,1e-08,3748.9,3748.5,4.27]
[1753128863689,1e-08,3748.9,3748.6,2.69429141]
[1753128864073,1e-08,3748.9,3748.8,2.66752027]
[1753128864281,1e-08,3748.9,3748.8,6.93752027]
[1753128864661,1e-08,3748.9,3748.8,7.90070144]
[1753128864878,1e-08,3748.9,3748.8,9.04430144]
[1753128866268,1e-08,3748.9,3748.8,4.77430144]
[1753128866800,1e-08,3748.9,3748.8,9.04330144]
[1753128867007,1e-08,3748.9,3748.8,4.31350144]
[1753128867193,1e-08,3748.9,3748.8,8.58250144]
[1753128867375,1e-08,3748.9,3748.8,4.31350144]
[1753128867564,1e-08,3748.9,3748.8,0.1328]
[1753128867766,1e-08,3748.9,3748.8,4.4018]
[1753128868366,1e-08,3748.9,3748.8,4.268]
[1753128868367,0.43200001,3748.9,3748.8,4.268]
[1753128868594,0.56480001,3748.9,3748.8,4.268]
[1753128868969,0.56480001,3748.9,3748.4,2.66780185]
[1753128869169,0.56480001,3748.9,3748.5,4.268]
[1753128869565,0.432,3748.8,3748.4,0.02667804]
[1753128869806,0.432,3748.8,3748.6,4.268]
[1753128869967,0.432,3748.8,3748.7,4.268]
[1753128870793,0.432,3748.8,3748.3,2.80061977]
[1753128870991,0.432,3748.8,3747.8,10.1675]
[1753128870992,0.432,3748.7,3748.4,4.267]
[1753128871235,0.5648,3748.6,3748.4,4.267]
[1753128871397,0.5648,3748.6,3748.4,6.9347598]
[1753128871727,0.5648,3748.6,3748.5,4.267]
[1753128873994,1e-08,3748.9,3748.5,6.93473376]
[1753128874212,1e-08,3748.9,3748.8,2.66752027]
[1753128874497,1e-08,3748.9,3748.8,4.267]
[1753128875113,1e-08,3748.9,3748.8,6.93452027]
[1753128876032,1e-08,3748.9,3748.8,8.91881846]
[1753128876421,1e-08,3748.9,3748.8,4.19101846]
[1753128876735,1e-08,3748.9,3748.8,8.48369366]
[1753128877043,1e-08,3748.9,3748.8,9.70411846]
[1753128877196,1e-08,3748.9,3748.8,12.70411846]
[1753128879952,1e-08,3748.9,3748.8,12.70311846]
[1753128880244,1e-08,3748.9,3748.8,11.45601846]
[1753128880839,1e-08,3748.9,3748.8,7.19101846]
[1753128881012,1e-08,3748.9,3748.8,6.93152027]
[1753128881651,1e-08,3748.9,3748.7,2.80033618]
[1753128881957,1e-08,3748.9,3748.8,4.264]
[1753128882117,0.5648,3748.8,3748.5,2.66772001]
[1753128882314,0.1328,3748.8,3748.6,6.93161593]
[1753128883444,1e-08,3748.9,3748.6,7.89155746]
[1753128883644,1e-08,3748.9,3748.8,2.66752027]
[1753128883952,0.432,3748.8,3748.0,2.66808964]
[1753128884153,0.1328,3748.6,3748.1,6.93098634]
[1753128884480,0.432,3748.5,3748.1,6.93100556]
[1753128884630,0.432,3748.4,3748.1,6.93100556]
[1753128884971,0.432,3748.4,3748.1,4.263]
[1753128885173,0.7977,3748.2,3747.9,0.001]
[1753128885369,0.7977,3748.2,3748.0,4.263]
[1753128886041,0.7977,3748.2,3748.0,6.93102331]
[1753128886231,0.7977,3748.2,3748.0,6.93107327]
[1753128886933,0.7977,3748.2,3748.0,4.263]
[1753128887135,0.4727,3748.1,3747.9,0.001]
[1753128887334,0.4727,3748.1,3748.0,4.262]
[1753128887535,0.7977,3748.2,3748.0,4.262]
[1753128888160,0.7977,3748.2,3748.0,6.93008964]
[1753128888362,0.7955,3748.6,3748.1,2.69467988]
[1753128888566,0.9283,3748.6,3748.2,4.28867947]
[1753128888740,0.9283,3748.6,3748.5,2.66773376]
[1753128888941,0.9283,3748.6,3748.5,6.92973376]
[1753128889165,1e-08,3748.9,3748.6,2.66764393]
[1753128889349,0.13280001,3748.9,3748.8,2.66752027]
[1753128889870,0.13280001,3748.9,3748.7,6.92958183]
[1753128890572,0.13280001,3748.9,3748.7,4.262]
[1753128890938,0.13280001,3748.9,3748.7,6.92957465]
[1753128891862,0.13280001,3748.9,3748.8,2.66752027]
[1753128892064,0.13280001,3748.9,3748.7,4.262]
[1753128892378,0.4727,3748.8,3747.8,6.401]
[1753128892544,0.9574,3748.6,3748.0,6.92906548]
[1753128892756,0.1328,3748.3,3747.9,2.66916029]
[1753128892957,0.4727,3748.2,3748.0,4.261]
[1753128893161,0.4727,3748.1,3748.0,4.261]
[1753128893576,0.1328,3748.3,3748.0,4.259]
[1753128893972,0.6055,3748.3,3748.0,4.259]
[1753128895100,0.6055,3748.3,3748.0,6.92708635]
[1753128895311,10.91360075,3750.1,3748.1,0.47478018]
[1753128895474,0.7793,3749.0,3748.2,4.26]
[1753128895810,0.7793,3749.0,3748.7,2.66758934]
[1753128895987,0.7793,3749.0,3748.8,4.26]
[1753128897111,0.7807,3748.8,3747.8,6.401]
[1753128897283,0.7807,3748.3,3747.8,6.401]
[1753128897485,1.16943008,3748.2,3748.0,4.259]
[1753128897870,0.4727,3748.1,3748.0,4.259]
[1753128898415,0.7514,3748.0,3747.3,0.001]
[1753128898710,0.99075301,3748.0,3747.3,0.001]
[1753128898917,1.46345301,3748.0,3747.3,0.001]
[1753128899116,1.46345301,3748.0,3747.7,4.259]
[1753128899676,1.46345301,3748.0,3747.3,0.001]
[1753128899978,1.46345301,3748.0,3747.5,4.259]
[1753128901536,0.7514,3748.0,3747.9,4.259]
[1753128901735,1.2241,3748.0,3747.9,4.259]
[1753128902228,0.7514,3748.0,3747.9,4.259]
[1753128903799,0.8239,3748.3,3747.9,4.259]
[1753128904013,0.8239,3748.3,3747.9,0.001]
[1753128904204,1.47375008,3748.2,3748.0,4.258]
[1753128904399,1.94645008,3748.2,3748.0,4.258]
[1753128904819,0.8239,3748.3,3748.0,4.258]
[1753128905108,1e-08,3748.9,3748.5,2.66773376]
[1753128905311,1e-08,3748.9,3748.6,4.258]
[1753128905508,1e-08,3748.9,3748.7,2.66754265]
[1753128905718,0.13280001,3748.9,3748.7,2.66754265]
[1753128906104,0.13280001,3748.9,3748.8,2.66752027]
[1753128906337,1e-08,3748.9,3748.8,4.257]
[1753128906500,1e-08,3748.9,3748.6,2.66765146]
[1753128906501,0.1328,3748.8,3748.6,2.66765146]
[1753128906717,0.1328,3748.8,3748.7,4.257]
[1753128907813,0.1328,3748.8,3748.7,7.37269143]
[1753128908012,1e-08,3748.9,3748.8,2.66752027]
[1753128908212,1e-08,3748.9,3748.8,3.14229547]
[1753128908435,1e-08,3748.9,3748.8,6.69229547]
[1753128908655,1e-08,3748.9,3748.8,7.65249547]
[1753128908829,1e-08,3748.9,3748.8,7.62582027]
[1753128909032,1e-08,3748.9,3748.8,9.44803568]
[1753128909336,1e-08,3748.9,3748.8,19.87401592]
[1753128909518,1e-08,3748.9,3748.8,9.65279492]
[1753128909852,1e-08,3748.9,3748.8,13.27053892]
[1753128910058,1e-08,3748.9,3748.8,12.00118292]
[1753128910224,0.10480001,3750.3,3750.0,2.66660251]
[1753128910550,0.10480001,3750.3,3750.1,4.255]
[1753128910948,0.10480001,3750.3,3750.2,2.66652445]
[1753128911114,0.4927,3750.9,3750.2,2.66652445]
[1753128911115,0.02,3750.9,3750.3,2.66645335]
[1753128911315,0.02,3750.9,3750.3,3.14121788]
[1753128912453,0.02,3750.9,3750.3,3.69121788]
[1753128912628,0.02,3750.9,3750.3,4.48931788]
[1753128913032,0.02,3750.9,3750.3,4.46265335]
[1753128913243,0.02,3750.9,3750.3,5.96361746]
[1753128914832,0.02,3750.9,3750.3,5.41361746]
[1753128915036,0.02,3750.9,3750.3,7.71755335]
[1753128915258,0.02,3750.9,3750.3,8.16565335]
[1753128917272,0.02,3750.9,3750.3,3.91265335]
[1753128917447,0.02,3750.9,3750.3,8.19131788]
[1753128917647,0.02,3750.9,3750.3,8.16465335]
[1753128917864,0.02,3750.9,3750.3,9.34365533]
[1753128919343,0.02,3750.9,3750.3,9.89365533]
[1753128920138,0.02,3750.9,3750.3,5.64165533]
[1753128920339,0.02,3750.9,3750.3,9.89265533]
[1753128921050,0.02,3750.9,3750.3,12.89265533]
[1753128921252,0.02,3750.9,3750.3,8.24085533]
[1753128921576,0.02,3750.9,3750.3,13.04085533]
[1753128921937,0.1328,3750.8,3750.3,0.1328]
[1753128922140,0.8044,3750.6,3750.3,6.91645335]
[1753128922379,0.4342,3750.7,3750.3,6.91645335]
[1753128922380,0.1328,3750.7,3750.3,6.91645335]
[1753128922584,0.02,3750.9,3750.3,6.91645335]
[1753128922585,0.02,3750.9,3750.3,8.85495335]
[1753128923073,0.02,3750.9,3750.3,11.85495335]
[1753128923613,0.02,3750.9,3750.3,11.85395335]
[1753128923904,0.02,3750.9,3750.3,13.30600232]
[1753128924411,0.02,3750.9,3750.3,7.04825335]
[1753128924707,0.02,3750.9,3750.3,8.06275335]
[1753128926477,0.02,3750.9,3750.3,7.04825335]
[1753128926698,0.1528,3750.9,3750.3,7.04825335]
[1753128927604,0.1528,3750.9,3750.3,7.51275335]
[1753128927811,0.1528,3750.9,3750.4,0.7744]
[1753128928007,0.02,3750.9,3750.8,3.99049789]
[1753128928181,0.02,3750.9,3750.8,8.39795886]
[1753128928382,0.02,3750.9,3750.8,8.83579789]
[1753128928712,0.02,3750.9,3750.8,8.28579789]
[1753128928913,0.02,3750.9,3750.3,0.759]
[1753128929085,0.4342,3750.8,3749.9,0.4645]
[1753128929286,0.4342,3750.8,3750.1,2.66654718]
[1753128929497,0.7595,3750.6,3750.2,6.91351657]
[1753128929810,0.4342,3750.5,3750.2,4.247]
[1753128929974,0.7595,3750.6,3750.2,0.02666524]
[1753128930175,0.7595,3750.6,3750.3,6.91345288]
[1753128930610,0.7595,3750.6,3750.3,4.247]
[1753128930811,0.7595,3750.6,3750.4,4.247]
[1753128932620,0.7595,3750.6,3749.4,7.1539]
[1753128932812,3.10055868,3750.5,3749.8,2.66680652]
[1753128932982,2.66639789,3750.4,3749.7,2.66688001]
[1753128933178,0.4342,3750.5,3749.9,4.246]
[1753128933512,0.7595,3750.6,3750.2,2.66647863]
[1753128933715,0.7595,3750.6,3750.3,4.246]
[1753128934019,0.8525,3750.9,3750.3,4.246]
[1753128934379,3.51854349,3750.9,3750.3,4.246]
[1753128934815,2.66611108,3750.8,3750.3,4.246]
[1753128935404,0.4342,3750.8,3750.3,4.246]
[1753128935574,3.10030939,3750.8,3750.3,4.246]
[1753128936084,0.4342,3750.8,3750.3,4.246]
[1753128937119,3.51854896,3750.9,3750.4,0.02666382]
[1753128937120,0.02,3750.9,3750.4,0.02666382]
[1753128937300,0.022,3750.9,3750.5,2.66626511]
[1753128937616,0.022,3750.9,3750.8,2.66609789]
[1753128937776,0.022,3750.9,3750.8,7.74725886]
[1753128937996,0.022,3750.9,3750.8,5.02789609]
[1753128938201,0.022,3750.9,3750.8,9.29955706]
[1753128938420,0.022,3750.9,3750.8,9.27289609]
[1753128938940,0.022,3750.9,3750.8,12.40569609]
[1753128939424,1e-08,3750.9,3750.8,18.95914809]
[1753128939625,1e-08,3750.9,3750.8,12.95569609]
[1753128939802,1e-08,3750.9,3750.8,15.62869609]
[1753128940840,1e-08,3750.9,3750.8,11.38369609]
[1753128941043,1e-08,3750.9,3750.8,15.62769609]
[1753128941454,0.02,3752.9,3752.8,2.66467704]
[1753128941674,0.02,3752.9,3752.8,7.17514474]
[1753128941943,0.02,3752.9,3752.8,8.57204474]
[1753128942165,0.02,3752.9,3752.8,9.12204474]
[1753128942544,0.02,3752.9,3752.8,8.57204474]
[1753128942701,0.02,3752.9,3752.8,0.3992677]
[1753128942902,0.02,3752.9,3752.8,7.2623543]
[1753128943147,0.02,3752.9,3752.8,7.23570753]
[1753128943317,0.02,3752.9,3752.8,8.25020753]
[1753128943502,0.02,3752.9,3752.8,7.23470753]
[1753128943703,0.02,3752.9,3752.8,9.32865969]
[1753128944242,0.02,3752.9,3752.8,0.1328]
[1753128944444,0.02,3752.9,3752.8,4.40144677]
[1753128944661,0.02,3752.9,3752.8,7.7268034]
[1753128944953,0.02,3752.9,3752.8,7.70015663]
[1753128945304,0.1328,3753.7,3752.8,7.70015663]
[1753128945661,3.02,3754.9,3753.8,0.8279]
[1753128945662,0.02,3754.9,3753.8,0.8279]
[1753128945867,0.02,3754.9,3753.9,1.04113896]
[1753128946005,0.02,3754.9,3753.9,0.02663896]
[1753128946006,0.002,3754.5,3753.9,0.02663896]
[1753128946212,0.805,3754.5,3753.7,2.66399796]
[1753128946539,3.09780224,3754.4,3753.1,0.4645]
[1753128946739,0.39028022,3754.3,3753.2,4.26764393]
[1753128946908,3.05391437,3754.3,3753.4,2.66419733]
[1753128947115,3.05391437,3754.3,3753.5,6.93179812]
[1753128947314,3.46848659,3754.5,3753.8,2.66396717]
[1753128947315,0.805,3754.5,3753.8,2.66396717]
[1753128947663,0.805,3754.5,3753.4,0.4553]
[1753128947815,0.7698,3754.3,3752.9,2.66459024]
[1753128948004,2.66395137,3753.9,3752.9,2.66460603]
[1753128948208,0.7698,3753.7,3752.6,6.395]
[1753128948440,2.66437918,3753.3,3752.6,6.395]
[1753128948606,0.4364,3753.2,3752.6,6.395]
[1753128948803,2.66460603,3752.9,3752.2,0.02665103]
[1753128949007,2.66479552,3752.7,3752.3,4.241]
[1753128949215,0.4364,3752.6,3752.4,4.241]
[1753128949416,0.4364,3752.5,3752.4,4.241]
[1753128949623,3.10129007,3752.5,3752.4,4.241]
[1753128949880,3.67789866,3752.5,3752.4,4.241]
[1753128950183,4.45439866,3752.5,3752.4,4.241]
[1753128950325,2.66510313,3752.2,3752.1,0.02]
[1753128950677,2.66510313,3752.2,3752.1,4.26]
[1753128950820,3.10150313,3752.2,3752.1,4.26]
[1753128951020,0.7765,3752.5,3752.1,4.26]
[1753128951220,2.66496109,3752.4,3752.1,4.26]
[1753128951479,2.6650505,3752.3,3752.1,4.26]
[1753128951784,0.7765,3752.5,3752.1,4.26]
[1753128951942,1.2054,3753.1,3752.2,2.66510313]
[1753128952142,1.2054,3753.1,3752.3,2.6916678]
[1753128952341,0.769,3753.1,3752.4,4.24]
[1753128952683,0.769,3753.1,3752.5,0.0266489]
[1753128952888,0.769,3753.1,3752.5,2.69151212]
[1753128953041,0.769,3753.1,3752.5,0.0266489]
[1753128953240,0.769,3753.1,3752.7,2.66473326]
[1753128953459,3.10059656,3753.5,3752.8,4.24]
[1753128953668,3.24077365,3753.4,3752.8,4.24]
[1753128953868,0.57646975,3753.4,3752.8,6.90467595]
[1753128954068,0.57646975,3753.4,3753.0,2.66453149]
[1753128954377,0.57646975,3753.4,3753.1,4.24]
[1753128954672,0.7713,3753.5,3753.1,4.24]
[1753128955035,1.2077,3753.5,3753.1,4.24]
[1753128955375,0.7713,3754.0,3753.5,2.6641586]
[1753128955536,0.7713,3754.0,3753.6,4.24]
[1753128955741,0.1328,3753.8,3753.7,4.239]
[1753128956573,0.1328,3753.9,3753.7,4.239]
[1753128957258,0.1328,3753.9,3753.7,6.90301831]
[1753128957462,0.1328,3753.9,3753.7,4.239]
[1753128957658,0.1328,3753.9,3753.8,2.66396717]
[1753128957859,0.1328,3753.9,3753.7,4.239]
[1753128958342,0.1328,3753.9,3753.7,6.90303724]
[1753128958857,0.002,3753.9,3753.8,2.66396717]
[1753128959077,0.002,3753.9,3753.8,3.14590684]
[1753128959685,0.002,3753.9,3753.8,2.82340684]
[1753128959882,0.002,3753.9,3753.8,3.841683]
[1753128960240,0.002,3753.9,3753.8,5.87201583]
[1753128960446,0.002,3753.9,3753.8,4.239]
[1753128960681,0.4384,3753.9,3753.6,0.001]
[1753128960981,2.66589621,3753.9,3753.8,4.238]
[1753128961195,0.7675,3753.9,3753.8,4.238]
[1753128961395,3.43142966,3753.9,3753.6,0.001]
[1753128961545,1.12392297,3753.9,3753.8,4.238]
[1753128961746,0.7675,3753.9,3753.8,4.238]
[1753128963079,0.002,3753.9,3753.6,0.001]
[1753128963305,0.002,3753.9,3753.7,4.238]
[1753128963450,0.002,3753.9,3753.8,4.238]
[1753128963877,0.002,3753.9,3753.6,0.001]
[1753128964079,0.002,3753.9,3753.8,4.238]
[1753128964598,0.002,3753.9,3753.6,0.001]
[1753128964771,0.002,3753.9,3753.7,4.238]
[1753128964968,0.32549577,3753.9,3753.8,4.237]
[1753128965171,3.42579935,3753.9,3753.8,4.237]
[1753128965687,0.76189577,3753.9,3753.8,4.237]
[1753128966397,0.4384,3753.9,3753.8,4.237]
[1753128966618,0.4384,3753.9,3753.6,0.001]
[1753128966759,0.002,3753.9,3753.8,4.237]
[1753128967662,3.10231564,3753.9,3753.8,4.237]
[1753128968196,0.4384,3753.9,3753.8,4.237]
[1753128968359,2.66403814,3753.7,3753.6,0.001]
[1753128968564,3.41613814,3753.7,3753.6,0.001]
[1753128968760,3.41613814,3753.7,3753.6,4.238]
[1753128968969,3.85253814,3753.7,3753.6,4.238]
[1753128971393,3.85253814,3753.7,3753.6,1e-08]
[1753128971394,6.85253814,3753.7,3753.6,1e-08]
[1753128971577,3.41663503,3753.0,3752.9,0.001]
[1753128971780,3.41663503,3753.0,3752.9,4.237]
[1753128971983,3.85303503,3753.0,3752.9,4.237]
[1753128975014,2.66453503,3753.0,3752.9,4.237]
[1753128975199,0.782,3753.6,3752.9,4.237]
[1753128975399,0.002,3753.9,3753.0,0.48194535]
[1753128975587,0.782,3753.8,3753.0,0.02664535]
[1753128975786,2.66422393,3753.5,3753.1,4.236]
[1753128976095,0.4364,3753.4,3753.1,4.236]
[1753128976570,0.4364,3753.4,3752.9,0.001]
[1753128976775,3.10078073,3753.3,3753.0,4.236]
[1753128977026,2.66446404,3753.1,3752.9,0.001]
[1753128977224,3.12771181,3753.2,3753.0,4.236]
[1753128977408,2.66446404,3753.1,3753.0,4.236]
[1753128977580,3.90976404,3753.1,3753.0,4.236]
[1753128977777,2.66453503,3753.0,3752.9,0.001]
[1753128978026,3.12783503,3753.0,3752.9,4.237]
[1753128978219,2.66453503,3753.0,3752.9,4.237]
[1753128978424,3.12783503,3753.0,3752.9,0.001]
[1753128979193,3.94473503,3753.0,3752.9,0.001]
[1753128979378,4.49669391,3753.0,3752.9,0.001]
[1753128979889,2.66503211,3752.3,3752.2,0.001]
[1753128980488,3.12833211,3752.3,3752.2,0.001]
[1753128981990,6.94523211,3752.3,3752.2,0.001]
[1753128982721,2.6658136,3751.2,3751.1,0.02]
[1753128982901,3.74929496,3751.2,3751.1,0.02]
[1753128983218,4.21259496,3751.2,3751.1,0.02]
[1753128986837,7.21259496,3751.2,3751.1,0.02]
[1753128987028,11.44859496,3751.2,3751.1,0.02]
[1753128987222,3.43668225,3750.4,3750.3,0.001]
[1753128987410,14.66016461,3750.4,3750.3,0.001]
[1753128987615,15.12346461,3750.4,3750.3,0.001]
[1753128987815,0.7703,3750.1,3749.1,0.02]
[1753128988110,10.91360075,3749.7,3749.1,0.02]